Cogmind - Beta 15 @@@ ROGUE MODE // 2025.08.03 @ 00:51:33 Player: Naughtyusername Result: Destroyed by G-67 Veteran with Plasma Rifle Performance ------------- Evolutions (6) 3000 Regions Visited (12) 2400 Robots Destroyed (80) 400 Value Destroyed (2774) 2774 Prototype IDs (39) 780 Alien Tech Used (0) 0 Bonus (4562) 4562 TOTAL SCORE: 13916 Bonus ------- Triggered High Security 500 High Alert Combat Kills 1282 Follower Combat Kills 1834 Registered with UFD 300 Met Warlord at Base 500 MAIN.C Attacked Warlord 500 Friendly Fire -354 Cogmind --------- Core Integrity 0/1150 Matter 290/300 Energy 94/100 System Corruption 4% Temperature Cool (9) Movement Flying (40) Location -4/Extension Parts ------- > --- POWER (2) -------- (None) > --- PROPULSION (6) --- Biomechanical Wings > --- UTILITY (9) ------ System Shield > --- WEAPON (2) ------- (None) > --- INVENTORY (5) ---- Antimatter Reactor Advanced Heat Sink Bore Cannon Mini Smartbomb Launcher Peak State ------------ > --- POWER ------------ F-cell Engine Neutrino Core > --- PROPULSION ------- Myomer Leg Myomer Leg Myomer Leg Myomer Leg Myomer Leg Myomer Leg > --- UTILITY ---------- High-capacity Storage Unit Active Sensor Suite Advanced Terrain Scanner Surveybot 17 Chip Makeshift Hacking Suite Improved Hacking Suite A0-MCA's Component Scanner > --- WEAPON ----------- Vortex Driver Enhanced Gauss Cannon > --- INVENTORY -------- Carbon-fiber Leg Carbon-fiber Leg Carbon-fiber Leg Flexi-carbon Leg Flexi-carbon Leg Flexi-carbon Leg Improved VTOL Module Nuclear Pulse Thruster Biomechanical Wings Nuclear Pulse Array Advanced Heat Sink Transmission Jammer Improved Medium Armor Plating Dimensional Node Initializer Bore Cannon Bore Cannon Bore Cannon Mini Smartbomb Launcher Flail [Rating: 137] Favorites ----------- Power Light Ion Engine Engine Light Ion Engine Power Core Fusion Compressor Reactor Light Antimatter Reactor Propulsion Armored Wheel Treads Light Treads Leg Myomer Leg Wheel Armored Wheel Flight Unit Improved VTOL Module Utility High-capacity Storage Unit Device Active Sensor Suite Storage High-capacity Storage Unit Processor A0-MCA's Component Scanner Hackware Makeshift Hacking Suite Protection Layered Medium Armor Plating Weapon Subdweller Beam Cannon Energy Cannon Subdweller Beam Cannon Ballistic Gun Assault Rifle Ballistic Cannon Enhanced Gauss Cannon Launcher Mini Smartbomb Launcher Impact Weapon Flail Build | -11 -10 -10 -8 -8 -6 -5 -5 -5 -5 -4 -4 -4 ------- Run | Yrd Mat Sub Rec Scr Fac Fac Upp Upp War Pro Fac Ext Slots Evolved 12 | . . . . . 8 2 . . . . 2 . Power 1 | . . . . . 1 . . . . . . . Propulsion 4 | . . . . . 3 . . . . . 1 . Utility 7 | . . . . . 4 2 . . . . 1 . Weapon . | . . . . . . . . . . . . . Parts Attached 83 | 3 8 10 1 5 24 8 . . . . 1 23 Power 13 | . 1 1 . 1 6 . . . . . . 4 Engine 4 | . 1 1 . . 2 . . . . . . . Core 7 | . . . . 1 4 . . . . . . 2 Reactor 2 | . . . . . . . . . . . . 2 Propulsion 31 | 3 2 1 1 1 10 1 . . . . . 12 Treads 2 | 2 . . . . . . . . . . . . Leg 12 | . . . . . . . . . . . . 12 Wheel 6 | 1 2 1 1 1 . . . . . . . . Hover . | . . . . . . . . . . . . . Flight 11 | . . . . . 10 1 . . . . . . Utility 22 | . 2 2 . 1 7 4 . . . . 1 5 Device 7 | . . 2 . . 4 . . . . . . 1 Storage 2 | . 1 . . . . . . . . . . 1 Processor 4 | . 1 . . . 2 1 . . . . . . Hackware 6 | . . . . . 1 3 . . . . 1 1 Protection 3 | . . . . 1 . . . . . . . 2 Artifact . | . . . . . . . . . . . . . Weapon 17 | . 3 6 . 2 1 3 . . . . . 2 Energy Gun . | . . . . . . . . . . . . . Energy Cannon 4 | . . 2 . . . 1 . . . . . 1 Ballistic Gun 6 | . 1 4 . 1 . . . . . . . . Ballistic Cannon 4 | . . . . 1 1 1 . . . . . 1 Launcher 2 | . 1 . . . . 1 . . . . . . Special Weapon . | . . . . . . . . . . . . . Impact Weapon 1 | . 1 . . . . . . . . . . . Slashing Weapon . | . . . . . . . . . . . . . Piercing Weapon . | . . . . . . . . . . . . . Special Melee Weapon . | . . . . . . . . . . . . . Unidentified Prototypes 1 | . . . . . 1 . . . . . . . Parts Lost 26 | . . 4 . . 1 . . . . . . 21 Power 5 | . . 1 . . . . . . . . . 4 Propulsion 13 | . . 2 . . 1 . . . . . . 10 Utility 5 | . . . . . . . . . . . . 5 Weapon 3 | . . 1 . . . . . . . . . 2 Highest Loss Streak 15 | . . 2 . . 1 . . . . . . 15 To Critical Strikes . | . . . . . . . . . . . . . Average Backups 11 | 6 13 17 17 17 4 4 3 4 5 5 4 12 Power . | 1 1 . . . . . . . . . . . Propulsion 4 | 4 7 7 6 6 . . . . . . . 5 Utility 2 | . . 3 4 3 3 1 1 2 2 2 1 1 Weapon 4 | 1 3 6 7 7 . 2 1 1 2 2 2 3 Tool/Special . | . . . . . . . . . . . . . Unused Backups 30 | . 4 1 . 10 6 . . 1 1 . . 7 Power 4 | . 1 . . . 2 . . . . . . 1 Propulsion 6 | . 1 . . 4 . . . . . . . 1 Utility 6 | . 1 . . 2 . . . 1 . . . 2 Weapon 12 | . 1 1 . 4 3 . . . 1 . . 2 Tool/Special 2 | . . . . . 1 . . . . . . 1 Average Slot Usage (%) 87 | . 98 98 100 94 76 80 82 82 82 82 78 74 Engine 7 | . 13 13 14 7 1 5 5 5 5 5 5 3 Core 3 | . . . . 5 7 5 5 5 5 5 5 3 Treads 4 | . 26 . . . . . . . . . . . Leg 3 | . . . . . . . . . . . . 19 Wheel 9 | . 1 28 28 26 . . . . . . . . Flight 8 | . . . . . 29 27 23 23 23 23 21 5 Device 8 | . . 10 14 7 12 11 11 11 11 11 10 10 Storage 7 | . 14 14 14 13 . . . . . . . 3 Processor 6 | . 12 3 . . 6 6 11 11 11 11 10 8 Hackware 4 | . . . . . 5 15 11 11 11 11 15 6 Protection 1 | . . . . 5 . . . . . . . 1 Energy Cannon 6 | . . 2 28 23 . . . . . . . 2 Ballistic Gun 6 | . 26 24 . 1 . . . . . . . . Ballistic Cannon 1 | . . . . . 3 . . . . . . 4 Impact Weapon 2 | . 1 . . . 5 5 5 5 5 5 5 1 Peak Build Rating 137 | 6 12 15 15 27 82 104 106 106 106 106 110 137 Average Rating 55 | 6 8 13 14 18 73 92 105 105 105 106 110 112 On Entrance 61 | 6 6 12 12 15 27 82 104 106 106 106 106 110 Naked Turns 106 | . . . . 68 . . . . . . . 38 Heaviest Build 113 | 11 48 60 60 71 24 28 28 28 28 28 28 113 Greatest Support 150 | 40 40 24 24 24 27 30 30 30 30 30 30 150 Greatest Overweight (x) 5 | . 1 4 2 5 1 . . . . . . . Average Overweight (x) . | . . 1 2 1 . . . . . . . . Largest Inventory Capacity 20 | 8 20 20 20 20 20 5 5 5 5 5 5 20 Average Capacity 14 | 8 17 20 20 19 5 5 5 5 5 5 5 15 Most Carried 20 | 6 16 20 19 20 19 5 5 5 5 5 5 20 Average Carried 12 | 5 13 17 18 18 4 4 4 4 4 5 4 13 Final Capacity 20 | 8 20 20 20 20 5 5 5 5 5 5 5 5 Final Carried 20 | 2 13 18 19 20 5 3 5 5 5 5 5 4 Class Distribution -------------------- 54% | Mutant 19% | Hacker-Scout 11% | Scout 7% | Commander-Skirmisher 4% | Scavenger-Skirmisher Dominant Class ---------------- Mutant | -10/Materials Mutant | -10/Subcaves Mutant | -8/Recycling Mutant | -8/Scraptown Scout | -6/Factory Hacker-Scout | -5/Factory Hacker-Scout | -5/Upper Caves Hacker-Scout | -5/Upper Caves Hacker-Scout | -5/Warlord Hacker-Scout | -4/Proximity Caves Hacker-Scout | -4/Factory Commander-Skirmisher | -4/Extension Resources | -11 -10 -10 -8 -8 -6 -5 -5 -5 -5 -4 -4 -4 ----------- Run | Yrd Mat Sub Rec Scr Fac Fac Upp Upp War Pro Fac Ext Matter Collected 3656 | 171 190 369 . 80 940 . 130 100 . 450 . 1226 Remotely . | . . . . . . . . . . . . . Salvage Created 2656 | . 357 180 . . 925 . . 109 . 116 . 969 Parts 83 | . 21 9 . . 12 . . . . 2 . 39 Haulers Intercepted 4 | . 1 . . . 2 . . . . . . 1 Recyclers Shooed 4 | . . . . . 2 . . . . . . 2 Parts Field Recycled . | . . . . . . . . . . . . . Retrieved Matter . | . . . . . . . . . . . . . Parts Self-Destructed 8 | . . 6 . . . . . . . 2 . . Prevented 2 | . . . . . . . 2 . . . . . Kills | -11 -10 -10 -8 -8 -6 -5 -5 -5 -5 -4 -4 -4 ------- Run | Yrd Mat Sub Rec Scr Fac Fac Upp Upp War Pro Fac Ext Combat Hostiles Destroyed 53 | . 8 5 . . . . . 4 . 5 . 31 Guns 12 | . 8 4 . . . . . . . . . . Cannons 11 | . . . . . . . . . . . . 11 AOE 30 | . . 1 . . . . . 4 . 5 . 20 Classes Destroyed 16 | . 4 1 . . 3 . . 1 . 2 . 5 Worker 9 | . 2 . . . 7 . . . . . . . Builder 5 | . . . . . 4 . . . . . . 1 Hauler 4 | . 1 . . . 2 . . . . . . 1 Recycler 5 | . . . . . 4 . . . . . . 1 Minesweeper 1 | . . . . . . . . . . 1 . . Mechanic 1 | . . . . . . . . . . . . 1 Drone 2 | . . . . . . . . . . 2 . . Watcher 1 | . . . . . 1 . . . . . . . Swarmer 10 | . 3 . . . . . . . . . . 7 Saboteur 1 | . . . . . . . . . . . . 1 Grunt 23 | . 5 . . . . . . 3 . 3 . 12 Brawler 5 | . . . . . . . . 1 . . . 4 Duelist 1 | . . . . . . . . . . . . 1 Protector 2 | . . . . . . . . . . . . 2 Sentry 4 | . . . . . . . . . . . . 4 Subdweller 5 | . . 5 . . . . . . . . . . Butcher 1 | . . . . . . . . . . . . 1 Best Kill Streak 15 | . 3 1 . . 3 . . 4 . 2 . 15 Combat Bots Only 14 | . 3 1 . . . . . 4 . 2 . 14 Max Kills in Single Turn 3 | . 1 1 . . 1 . . 1 . 2 . 3 Gunslinging . | . . . . . . . . . . . . . Exploded 3 | . . 1 . . . . . 1 . 2 . 3 Melee . | . . . . . . . . . . . . . Uniques/NPCs Destroyed . | . . . . . . . . . . . . . Combat | -11 -10 -10 -8 -8 -6 -5 -5 -5 -5 -4 -4 -4 -------- Run | Yrd Mat Sub Rec Scr Fac Fac Upp Upp War Pro Fac Ext Hostile Shots Fired 419 | . 50 75 . . 8 1 . 1 2 4 11 267 Missed 149 | . 15 24 . . 6 1 . . . 2 5 96 Hits 270 | . 35 51 . . 2 . . 1 2 2 6 171 Melee 22 | . . . . . . . . . . . . 22 Projectile 248 | . 35 51 . . 2 . . 1 2 2 6 149 AOE 4 | . . . . . . . . . . . . 4 Critical Strikes 16 | . 1 . . . . . . . 1 . . 14 Damage Taken 5074 | . 366 736 . . 36 . . 18 48 44 130 3696 Core 1430 | . 63 155 . . 16 . . . . 26 63 1107 Absorbed by Shields 392 | . . . . . . . . . . . . 392 Core Remaining (%) 76 | 100 . . . 12 98 . . . . 97 . . Volleys Fired 205 | . 31 42 . . 14 8 1 9 . 12 . 88 Largest 2 | . 2 2 . . 1 1 1 1 . 1 . 2 Hottest 160 | . 40 160 . . 37 85 47 80 . 80 . 147 Shots Fired 285 | . 62 69 . . 14 8 1 9 . 12 . 110 Gun 107 | . 62 45 . . . . . . . . . . Cannon 130 | . . 18 . . 14 8 1 . . . . 89 Launcher 48 | . . 6 . . . . . 9 . 12 . 21 Special . | . . . . . . . . . . . . . Kinetic 192 | . 62 45 . . 14 5 1 . . . . 65 Thermal 21 | . . 18 . . . 3 . . . . . . Explosive 48 | . . 6 . . . . . 9 . 12 . 21 Electromagnetic . | . . . . . . . . . . . . . Entropic 24 | . . . . . . . . . . . . 24 Robot Hit Streak 14 | . 14 14 . . . . . . . 5 . 7 Robot Miss Streak 5 | . 3 2 . . . . . . . . . 5 Penetration Max 1 | . . . . . . . . . . . . 1 Secondary Targets 1 | . 1 . . . . . . . . . . . Max Gunslinging Chain 1 | . 1 . . . . . . . . . . . Shots Hit Robots 154 | . 39 36 . . 28 1 . . . 2 . 48 Core Hits 179 | . 21 11 . . 5 . . 10 . 12 . 120 Critical Kills 3 | . 1 . . . 2 . . . . . . . Critical Parts Destroyed 2 | . . . . . 1 . . . . . . 1 Critical Strikes 14 | . 1 . . . 3 . . . . . . 10 Destroy 2 | . 1 . . . . . . . . . . 1 Blast 1 | . . . . . . . . . . . . 1 Smash 3 | . . . . . 3 . . . . . . . Sunder 8 | . . . . . . . . . . . . 8 Melee Attacks 131 | . 3 5 . . 74 27 5 2 . 4 11 . Impact 131 | . 3 5 . . 74 27 5 2 . 4 11 . Slashing . | . . . . . . . . . . . . . Piercing . | . . . . . . . . . . . . . Sneak Attacks 21 | . . . . . 19 1 . . . 1 . . Combat Hostiles . | . . . . . . . . . . . . . Follow-up Attacks . | . . . . . . . . . . . . . Damage Inflicted 14082 | . 428 722 . . 1953 128 . 772 . 1505 . 8574 Guns 900 | . 416 484 . . . . . . . . . . Cannons 2790 | . . . . . . . . . . . . 2790 Explosions 8093 | . . 238 . . . . . 772 . 1402 . 5681 Melee 2184 | . . . . . 1953 128 . . . 103 . . Ramming 115 | . 12 . . . . . . . . . . 103 Kinetic 2117 | . 416 484 . . . . . . . . . 1217 Thermal . | . . . . . . . . . . . . . Explosive 8093 | . . 238 . . . . . 772 . 1402 . 5681 Electromagnetic . | . . . . . . . . . . . . . Impact 2184 | . . . . . 1953 128 . . . 103 . . Slashing . | . . . . . . . . . . . . . Piercing . | . . . . . . . . . . . . . Entropic 1573 | . . . . . . . . . . . . 1573 Highest Corruption 4 | . . . . . . . . . 1 1 . 4 Average Corruption 2 | . . . . . . . . . 1 1 . 4 Corruption Purged . | . . . . . . . . . . . . . Corruption Blocked . | . . . . . . . . . . . . . Effects 7 | . . . . . . . . . 1 . . 6 Message Errors 3 | . . . . . . . . . . . . 3 Matter Fused 1 | . . . . . . . . . 1 . . . Energy Discharges 1 | . . . . . . . . . . . . 1 Data Loss (major) 1 | . . . . . . . . . . . . 1 Weapon Failures 1 | . . . . . . . . . . . . 1 Overload Shots . | . . . . . . . . . . . . . Overflow Damage 892 | . . . . . 672 . . . . 71 . 149 Projectiles 89 | . . . . . . . . . . . . 89 Explosions 52 | . . . . . . . . . . 8 . 44 Melee 751 | . . . . . 672 . . . . 63 . 16 Knockbacks 18 | . . . . . 7 1 . . . . . 10 Impact 9 | . . . . . 7 1 . . . . . 1 Kinetic 7 | . . . . . . . . . . . . 7 Secondary 2 | . . . . . . . . . . . . 2 Self-Inflicted Damage . | . . . . . . . . . . . . . Shots . | . . . . . . . . . . . . . Rammed 6 | . 6 . . . . . . . . . . . Targets Rammed 10 | . 7 . . . . . . . . . . 3 Kicked 3 | . . . . . . . . . . . . 3 Crushed 1 | . 1 . . . . . . . . . . . Highest Temperature 208 | . 12 117 . . 198 84 . 122 . 98 . 208 Average Temperature 42 | . 8 56 . . 42 46 . 60 . 38 . 39 Received Heat Transfer 936 | . 147 255 . . 9 . . 9 . . 27 489 Siege Activations . | . . . . . . . . . . . . . Martial Activations . | . . . . . . . . . . . . . Shielding Activations . | . . . . . . . . . . . . . Robots Disrupted . | . . . . . . . . . . . . . Combat Hostiles . | . . . . . . . . . . . . . Robots Corrupted 10 | . . . . . 8 . . . . 1 . 1 Combat Hostiles . | . . . . . . . . . . . . . Parts Fried 28 | . . . . . 24 . . . . 1 . 3 Impact Corruptions 26 | . . . . . 23 . . . . 2 . 1 Robots Melted . | . . . . . . . . . . . . . Combat Hostiles . | . . . . . . . . . . . . . Parts Melted . | . . . . . . . . . . . . . Heat Transferred . | . . . . . . . . . . . . . Parts Sabotaged 1 | . . . . . . . . . . . . 1 Parts Stolen . | . . . . . . . . . . . . . Parts Stripped . | . . . . . . . . . . . . . Power Chain Reactions . | . . . . . . . . . . . . . Alert | -11 -10 -10 -8 -8 -6 -5 -5 -5 -5 -4 -4 -4 ------- Run | Yrd Mat Sub Rec Scr Fac Fac Upp Upp War Pro Fac Ext Maximum Alert Level 5 | . . . . . 1 1 . . . . 1 5 Low Security (%) 58 | 100 100 . 100 . 81 56 . . . . 51 6 Level 1 14 | . . . . . 18 43 . . . . 48 11 Level 2 1 | . . . . . . . . . . . . 5 Level 3 9 | . . . . . . . . . . . . 29 Level 4 7 | . . . . . . . . . . . . 21 Level 5 . | . . . . . . . . . . . . 2 High Security 7 | . . . . . . . . . . . . 23 Max Security . | . . . . . . . . . . . . . Peak Influence 2490 | . 72 . 7 . 328 300 . . . . 391 2490 Initial 194 | . . . 7 . . 160 . . . . 194 98 Average 441 | . 14 . 1 . 91 190 . . . . 214 1172 Influence Increases 5873 | . 265 60 5 . 792 348 . 90 . 105 728 3480 Destroy 0b10 Robot/C 1680 | . 160 . . . . . . 80 . 60 . 1380 Destroy 0b10 Robot/NC 175 | . 15 . . . 90 . . . . 15 . 55 Destroy Leader 202 | . 42 . . . 4 . . 10 . . . 146 Allied During Kill 762 | . . . . . . . . . . . . 762 Successful Hack 139 | . . . 5 . 47 57 . . . . 18 12 Disable Machine 45 | . . . . . 30 . . . . . . 15 Destroy Structure 430 | . 3 . . . 41 46 . . . . 20 320 Advance Influence 150 | . . . . . . . . . . . 150 . Partial Spotted 75 | . . . . . . 15 . . . . 15 45 Lose Combat Pursuer 915 | . 45 60 . . 180 30 . . . 30 225 345 Active Sensor Use 1300 | . . . . . 400 200 . . . . 300 400 Influence Decreases 3383 | . 204 105 21 . 464 394 175 61 136 35 596 1192 Entered New Map 599 | . . 30 9 . . 168 105 21 136 . 26 104 Time Decay 1503 | . 204 55 12 . 313 206 70 40 . 35 110 458 Lost Part 240 | . . 20 . . 10 . . . . . . 210 Lost Ally 450 | . . . . . . 20 . . . . 10 420 Purge Threat 591 | . . . . . 141 . . . . . 450 . Squads Dispatched 42 | . 1 . . . 10 4 . . . . 5 22 Investigation 16 | . 1 . . . 5 2 . . . . 3 5 Extermination 4 | . . . . . 2 1 . . . . 1 . Reinforcement 6 | . . . . . 3 1 . . . . 1 1 Assault 16 | . . . . . . . . . . . . 16 Garrison . | . . . . . . . . . . . . . Intercept . | . . . . . . . . . . . . . Searches Triggered . | . . . . . . . . . . . . . Construction Impeded 3 | . . . . . 2 . . . . . . 1 Haulers Reinforced . | . . . . . . . . . . . . . Active Scanning Responses 13 | . . . . . 4 2 . . . . 3 4 Cargo Convoy Interrupts . | . . . . . . . . . . . . . Stealth | -11 -10 -10 -8 -8 -6 -5 -5 -5 -5 -4 -4 -4 --------- Run | Yrd Mat Sub Rec Scr Fac Fac Upp Upp War Pro Fac Ext Distress Signals 8 | . 1 . . . 1 1 . . . 2 1 2 Communications Jammed . | . . . . . . . . . . . . . Distress Signals . | . . . . . . . . . . . . . Times Spotted 201 | . 22 10 . . 14 9 . 4 1 4 15 122 Peak Tracking Total 31 | . 4 2 . . 6 5 . 4 5 5 12 31 Tactical Retreats 25 | . 2 2 . . 6 1 . . . 1 5 8 Traps | -11 -10 -10 -8 -8 -6 -5 -5 -5 -5 -4 -4 -4 ------- Run | Yrd Mat Sub Rec Scr Fac Fac Upp Upp War Pro Fac Ext Traps Triggered 9 | . 1 . . . . . . . . . 1 7 Indirectly . | . . . . . . . . . . . . . Trap Hack Attempts . | . . . . . . . . . . . . . Triggered . | . . . . . . . . . . . . . Disarmed . | . . . . . . . . . . . . . Reprogrammed . | . . . . . . . . . . . . . Reused . | . . . . . . . . . . . . . Traps Extracted . | . . . . . . . . . . . . . Installed . | . . . . . . . . . . . . . Triggered . | . . . . . . . . . . . . . Machines | -11 -10 -10 -8 -8 -6 -5 -5 -5 -5 -4 -4 -4 ---------- Run | Yrd Mat Sub Rec Scr Fac Fac Upp Upp War Pro Fac Ext Machines Disabled 7 | . . 1 . . 2 . 1 . . . . 3 Max in Single Turn 2 | . . 1 . . 1 . 1 . . . . 2 Garrison Access 3 | . . . . . 2 1 . . . . . . Machines Repaired . | . . . . . . . . . . . . . Machines Dismantled . | . . . . . . . . . . . . . Machines Sabotaged . | . . . . . . . . . . . . . Overloaded Fab Kills . | . . . . . . . . . . . . . Hacking | -11 -10 -10 -8 -8 -6 -5 -5 -5 -5 -4 -4 -4 --------- Run | Yrd Mat Sub Rec Scr Fac Fac Upp Upp War Pro Fac Ext Machines Accessed 68 | . 3 . 1 8 23 7 1 1 11 . 6 7 Terminals 36 | . 3 . 1 . 13 6 . . . . 6 7 Fabricators 3 | . . . . . 3 . . . . . . . Repair Stations 1 | . . . . . 1 . . . . . . . Recycling Units 3 | . . . . . 3 . . . . . . . Scanalyzers 1 | . . . . . 1 . . . . . . . Garrison Access 3 | . . . . . 2 1 . . . . . . Total Hacks 188 | . 9 . 4 57 54 14 1 1 12 . 23 13 Successful 144 | . 4 . 1 57 30 11 1 1 12 . 18 9 Failed 44 | . 5 . 3 . 24 3 . . . . 5 4 Catastrophic 5 | . 1 . . . 2 1 . . . . . 1 Database Lockouts . | . . . . . . . . . . . . . Manual 66 | . 4 . 4 . 28 11 . . . . 15 4 Terminals 98 | . 9 . 4 . 36 13 . . . . 23 13 Fabricators 4 | . . . . . 4 . . . . . . . Repair Stations 2 | . . . . . 2 . . . . . . . Recycling Units 9 | . . . . . 9 . . . . . . . Scanalyzers 1 | . . . . . 1 . . . . . . . Garrison Access 3 | . . . . . 2 1 . . . . . . Terminal Hacks 107 | . 1 . . 57 12 3 1 1 12 . 11 9 Record 76 | . . . . 56 6 . 1 . 10 . . 3 Part Schematic 3 | . . . . . . . . . . . . 3 Robot Analysis 1 | . . . . . 1 . . . . . . . Open Door 7 | . . . . . . . . 1 2 . 1 3 Branch Access Points 1 | . . . . . . 1 . . . . . . Terminal Index 2 | . . . . . . 1 . . . . 1 . Alert Level 2 | . . . . . 1 . . . . . 1 . Unreport Threat 5 | . . . . . 2 . . . . . 3 . Recall Investigation 2 | . . . . . 1 . . . . . 1 . Recall Reinforcements 1 | . . . . . . . . . . . 1 . Hauler Manifests 3 | . 1 . . . 1 1 . . . . . . Registered Components 1 | . . . . . . . . . . . 1 . Zone Layout 2 | . . . . . . . . . . . 2 . Proto ID Catalog 1 | . . . . 1 . . . . . . . . Fabricator Hacks 1 | . . . . . 1 . . . . . . . Network Status 1 | . . . . . 1 . . . . . . . Repair Station Hacks 1 | . . . . . 1 . . . . . . . Scan Component 1 | . . . . . 1 . . . . . . . Recycling Unit Hacks 3 | . . . . . 3 . . . . . . . Retrieve Matter 2 | . . . . . 2 . . . . . . . Retrieve Components 1 | . . . . . 1 . . . . . . . Scanalyzer . | . . . . . . . . . . . . . Garrison Access Hacks 3 | . . . . . 2 1 . . . . . . Seal Access 3 | . . . . . 2 1 . . . . . . Unauthorized Hacks 28 | . 3 . 1 . 11 7 . . . . 6 . Terminals 28 | . 3 . 1 . 11 7 . . . . 6 . Assimilate 3 | . . . . . . 2 . . . . 1 . Botnet 7 | . . . 1 . 3 1 . . . . 2 . Operators 1 | . . . . . 1 . . . . . . . Skim 17 | . 3 . . . 7 4 . . . . 3 . Fabricators . | . . . . . . . . . . . . . Repair Stations . | . . . . . . . . . . . . . Recycling Units . | . . . . . . . . . . . . . Scanalyzers . | . . . . . . . . . . . . . Garrison Access . | . . . . . . . . . . . . . Data Cores Recovered . | . . . . . . . . . . . . . Used . | . . . . . . . . . . . . . Hacking Detections 40 | . 3 . 1 . 20 6 . . . . 6 4 Full Trace Events 1 | . . . . . 1 . . . . . . . Feedback Events . | . . . . . . . . . . . . . Feedback Blocked . | . . . . . . . . . . . . . Robot Schematics Acquired . | . . . . . . . . . . . . . Robots Built . | . . . . . . . . . . . . . Authchips . | . . . . . . . . . . . . . Time . | . . . . . . . . . . . . . Total Robot Build Rating . | . . . . . . . . . . . . . Part Schematics Acquired 3 | . . . . . . . . . . . . 3 Parts Built . | . . . . . . . . . . . . . Authchips . | . . . . . . . . . . . . . Time . | . . . . . . . . . . . . . Total Part Build Rating . | . . . . . . . . . . . . . Parts Repaired . | . . . . . . . . . . . . . Time . | . . . . . . . . . . . . . Parts Recycled . | . . . . . . . . . . . . . Recycled Matter . | . . . . . . . . . . . . . Retrieved Matter . | . . . . . . . . . . . . . Retrieved Components 3 | . . . . . 3 . . . . . . . Parts Scanalyzed . | . . . . . . . . . . . . . Part Schematics Acquired . | . . . . . . . . . . . . . Parts Damaged . | . . . . . . . . . . . . . Bothacking | -11 -10 -10 -8 -8 -6 -5 -5 -5 -5 -4 -4 -4 ------------ Run | Yrd Mat Sub Rec Scr Fac Fac Upp Upp War Pro Fac Ext Used RIF Installer . | . . . . . . . . . . . . . Robots Hacked . | . . . . . . . . . . . . . Non-combat . | . . . . . . . . . . . . . Combat . | . . . . . . . . . . . . . Robot Hacks Applied . | . . . . . . . . . . . . . Relay Couplers Released . | . . . . . . . . . . . . . Fabnet Peak Effective % . | . . . . . . . . . . . . . Robots Rewired 21 | . . . . . . . . . . . . 21 Allies Hacked . | . . . . . . . . . . . . . Hacks Repelled . | . . . . . . . . . . . . . Allies | -11 -10 -10 -8 -8 -6 -5 -5 -5 -5 -4 -4 -4 -------- Run | Yrd Mat Sub Rec Scr Fac Fac Upp Upp War Pro Fac Ext Total Allies 26 | . . . . . . 2 . . . . 1 23 Largest Group 13 | . . . . . . 2 . . . . 1 13 Highest-Rated Group 642 | . . . . . . 52 . . . . 26 642 Highest-Rated Ally 159 | . . . . . . 26 . . . . 26 159 Total Orders 4 | . . . . . . 1 . . . . 1 2 STAY 3 | . . . . . . 1 . . . . 1 1 FOLLOW 1 | . . . . . . . . . . . . 1 Ally Attacks 225 | . . . . . . . . . . . . 225 Total Damage 6876 | . . . . . . . . . . . . 6876 Kills 46 | . . . . . . . . . . . . 46 Allies Corrupted . | . . . . . . . . . . . . . Allies Melted 1 | . . . . . . . . . . . . 1 Intel | -11 -10 -10 -8 -8 -6 -5 -5 -5 -5 -4 -4 -4 ------- Run | Yrd Mat Sub Rec Scr Fac Fac Upp Upp War Pro Fac Ext Active Infowar (turns) 5159 | . . 516 96 1061 873 422 158 97 225 179 229 1303 Optics 610 | . . 193 . 330 87 . . . . . . . A.S.S. 3486 | . . . . . 873 422 158 97 225 179 229 1303 Terrain 4346 | . . 323 96 731 583 422 158 97 225 179 229 1303 Robot Analysis Total 1 | . . . . . 1 . . . . . . . Derelict Logs Recovered 7 | . . 1 . 4 . . 1 . . 1 . . Drone Launches . | . . . . . . . . . . . . . Drone Recoveries . | . . . . . . . . . . . . . Exploration | -11 -10 -10 -8 -8 -6 -5 -5 -5 -5 -4 -4 -4 ------------- Run | Yrd Mat Sub Rec Scr Fac Fac Upp Upp War Pro Fac Ext Turns Passed 7841 | 7 1272 698 96 1963 998 422 158 97 225 179 229 1497 Spaces Moved 9336 | 1 518 443 78 1641 2120 1178 406 211 770 290 558 1122 Core 176 | . . . . 124 . . . . . . . 52 Treads 487 | 1 486 . . . . . . . . . . . Legs 527 | . . . . . . . . . . . . 527 Wheels 2070 | . 32 443 78 1517 . . . . . . . . Hover . | . . . . . . . . . . . . . Flight 6076 | . . . . . 2120 1178 406 211 770 290 558 543 Fastest Speed 26 | 160 105 105 120 50 26 26 29 29 29 29 29 29 Average Speed 64 | 160 213 119 120 115 27 26 29 29 29 29 29 74 Slowest Speed 240 | 160 240 150 120 165 96 29 29 29 29 29 29 120 Overloaded Moves . | . . . . . . . . . . . . . Propulsion Burnouts . | . . . . . . . . . . . . . Robots Hopped 35 | . . . . . 4 5 . . 3 1 3 19 Potential Cave-ins 10 | . . 3 . . . 7 . . . . . . Cave-ins Triggered . | . . . . . . . . . . . . . Exploration Rate (%) 50 | 2 81 32 17 94 55 31 62 41 92 48 21 83 Regions Visited 12 Branch Regions 8 Pre-discovered Areas 11 | . . 1 . 8 2 . . . . . . . Known Exits Taken 7 | . . . . . 1 1 1 1 1 1 1 . Unknown Exits Taken 5 | 1 1 1 1 1 . . . . . . . . Scrap Searched 18 | . . 7 . 5 . . 3 2 . 1 . . Spaces Dug 112 | . 3 14 . . 41 30 5 2 . 3 10 4 Terrain Destroyed 539 | . 3 36 . . 41 30 5 69 . 116 10 229 Melee 85 | . 3 3 . . 39 21 4 2 . 3 10 . Projectile 79 | . . 11 . . 2 9 1 . . . . 56 AOE 375 | . . 22 . . . . . 67 . 113 . 173 Terrain Rammed . | . . . . . . . . . . . . . Walls Destroyed . | . . . . . . . . . . . . . Machines Disabled . | . . . . . . . . . . . . . Actions | -11 -10 -10 -8 -8 -6 -5 -5 -5 -5 -4 -4 -4 --------- Run | Yrd Mat Sub Rec Scr Fac Fac Upp Upp War Pro Fac Ext Total 10655 | 7 617 532 80 1718 2428 1232 436 231 768 361 604 1641 Wait 459 | . 27 13 . . 152 7 20 7 . 57 19 157 Move 9268 | . 517 442 77 1640 2112 1167 405 210 764 287 552 1095 Hop 21 | . . . . . 3 5 . . 2 1 2 8 Pick Up 95 | . 16 8 2 35 9 2 2 2 1 . 1 17 Fast Attach 37 | . 1 2 . 8 11 2 . . . . . 13 Attach 41 | . 1 5 1 4 12 7 . . . . 1 10 Detach 18 | . 1 2 . 1 7 5 . . . . . 2 Swap 40 | 3 7 10 . 3 4 . 2 . . . . 11 Drop 82 | 4 6 3 . 27 30 2 1 1 1 . . 7 Fire 205 | . 31 42 . . 14 8 1 9 . 12 . 88 Melee 131 | . 3 5 . . 74 27 5 2 . 4 11 . Ram . | . . . . . . . . . . . . . Kick 3 | . . . . . . . . . . . . 3 Crush 7 | . 7 . . . . . . . . . . . Escape Stasis 89 | . . . . . . . . . . . 18 71 Rewire 159 | . . . . . . . . . . . . 159 Trap . | . . . . . . . . . . . . . Miscellaneous . | . . . . . . . . . . . . . Route ------- -11/Scrapyard -10/Materials (discovered 5 exits: [*Mat x3] / [*Min] / [*Sub]) -10/Subcaves -8/Recycling -8/Scraptown (discovered 2 exits: *Fac x2) -6/Factory (discovered 4 exits: *Fac x3 / *Low) -5/Factory (discovered 3 exits: Fac / *Upp x2) -5/Upper Caves -5/Upper Caves (discovered 2 exits: Fac / *War) -5/Warlord -4/Proximity Caves -4/Factory (discovered 6 exits: *Res x4 / [Upp] / *Ext) -4/Extension (discovered 3 exits: *Res x2 / [*Cet]) History --------- Turn | Location | Event 8 | -11/Scrapyard | Discovered new exit (range 0) 8 | -11/Scrapyard | Entered Materials 179 | -10/Materials | Discovered new exit (range 13) 303 | -10/Materials | Build established: Mutant 520 | -10/Materials | Discovered new exit (range 9) 617 | -10/Materials | Discovered new exit (range 5) 651 | -10/Materials | Discovered new exit (range 16) 786 | -10/Materials | Discovered new exit (range 15) 1280 | -10/Materials | Entered Subcaves 1351 | -10/Subcaves | Learned location of Zion (-7) 1392 | -10/Subcaves | Disturbed a concealed Subdweller 1516 | -10/Subcaves | Core integrity fell below 50% 1557 | -10/Subcaves | Core integrity fell below 20% 1598 | -10/Subcaves | Disturbed a concealed Subdweller 1906 | -10/Subcaves | Discovered new exit (range 14) 1907 | -10/Subcaves | Shifting Twisted Machinery released Mak. Sword 1978 | -10/Subcaves | Entered Recycling 2035 | -8/Recycling | Scanned before Scraplab entrance 2052 | -8/Recycling | Entered Scraplab 2071 | -8/Recycling | Discovered new exit (range 2) 2074 | -8/Recycling | Entered Scraptown 2416 | -8/Scraptown | Scanned Subdweller tech in exchange for log data 2419 | -8/Scraptown | Learned location of Quarantine (-3) 2420 | -8/Scraptown | Learned location of 2 exits from Research 2422 | -8/Scraptown | Learned Factory security intel 2423 | -8/Scraptown | Learned location of 2 exits from Upper Caves 2438 | -8/Scraptown | Discovered new exit (range 7) 2547 | -8/Scraptown | Visited Symbiants 2585 | -8/Scraptown | Visited CPS Storage 2598 | -8/Scraptown | Visited Cyclists 2648 | -8/Scraptown | Visited UFD Registry 2648 | -8/Scraptown | Registered with UFD as "Rustninja" 2675 | -8/Scraptown | Entered Cyclist Reading Room 2784 | -8/Scraptown | Visited Red Mages 2845 | -8/Scraptown | Visited The Evicted 3071 | -8/Scraptown | Visited Fellowship of the Rings 3119 | -8/Scraptown | Visited Junk Repository 3184 | -8/Scraptown | Visited Infowarlord's Domain 3196 | -8/Scraptown | Found Active Sensor Suite 3216 | -8/Scraptown | Visited Observation Area 3334 | -8/Scraptown | Delivered Scrap Shield to a Scientist 3473 | -8/Scraptown | Visited Curators Association 3502 | -8/Scraptown | Visited Supply Room 3540 | -8/Scraptown | Visited A0-MCA Data Center 3565 | -8/Scraptown | Visited Abandonware Association 3583 | -8/Scraptown | Learned abandonware demo "SHUTEYE.EXE" 3617 | -8/Scraptown | Visited Derelict Rescue Squad 3628 | -8/Scraptown | Found DRS Beacon 3664 | -8/Scraptown | Visited Cartography Club 3718 | -8/Scraptown | Found Surveybot 17 Chip 3737 | -8/Scraptown | Found Deep Structural Scanner 3757 | -8/Scraptown | Learned location of Lower Caves (-6) 3757 | -8/Scraptown | Learned location of Warlord (-5) 3757 | -8/Scraptown | Learned location of Extension (-4) 3757 | -8/Scraptown | Learned 8 Factory zone layouts 3757 | -8/Scraptown | Learned 12 Research zone layouts 3757 | -8/Scraptown | Learned 12 Lower Caves zone layouts 3757 | -8/Scraptown | Learned 16 Upper Caves zone layouts 3757 | -8/Scraptown | Learned 8 Upper Caves zone layouts 3757 | -8/Scraptown | Learned 20 Upper Caves zone layouts 3757 | -8/Scraptown | Learned 24 Upper Caves zone layouts 3757 | -8/Scraptown | Learned 16 Proximity Caves zone layouts 3757 | -8/Scraptown | Learned 8 Proximity Caves zone layouts 3757 | -8/Scraptown | Learned 4 Hub_04(d) zone layouts 3757 | -8/Scraptown | Learned location of 1 exit from Lower Caves 3757 | -8/Scraptown | Learned location of 3 exits from Lower Caves 3757 | -8/Scraptown | Learned location of 3 exits from Proximity Caves 3894 | -8/Scraptown | Given a B+ rating by A0-MCA 3899 | -8/Scraptown | Found A0-MCA's Component Scanner 3916 | -8/Scraptown | Visited Science Guys 4033 | -8/Scraptown | Discovered new exit (range 3) 4037 | -8/Scraptown | Entered Factory 4037 | -6/Factory | Evolved 8 slots: Power x1, Propulsion x3, Utility x4 4038 | -6/Factory | Identified exit to Lower Caves 4285 | -6/Factory | Discovered new exit (range 19) 4300 | -6/Factory | Identified exit to Factory 4337 | -6/Factory | Build established: Scout 4488 | -6/Factory | Learned Extension stockpile data 4600 | -6/Factory | Learned 4 Lower Caves zone layouts 4618 | -6/Factory | Learned Hub_04(d) stockpile data 5035 | -6/Factory | Entered another Factory area 5035 | -5/Factory | Evolved 2 slots: Utility x2 5036 | -5/Factory | Identified exit to Upper Caves 5252 | -5/Factory | Found Mni. Smartbomb Launcher 5322 | -5/Factory | Build established: Hacker-Scout 5401 | -5/Factory | Discovered new exit (range 20) 5457 | -5/Factory | Entered Upper Caves 5458 | -5/Upper Caves | Identified exit to Upper Caves 5459 | -5/Upper Caves | UFD Scientist delivered a prototype 5459 | -5/Upper Caves | Found Prototype Protection 5460 | -5/Upper Caves | Identified Enh. Scrap Shield 5595 | -5/Upper Caves | Found Alien Artifact 5601 | -5/Upper Caves | Learned Factory emergency access door positions 5615 | -5/Upper Caves | Entered another Upper Caves area 5616 | -5/Upper Caves | Identified exit to Warlord 5617 | -5/Upper Caves | Identified exit to Factory 5712 | -5/Upper Caves | Entered Warlord 5713 | -5/Warlord | Identified exit to Proximity Caves 5785 | -5/Warlord | Visited the Vortex Lab 5788 | -5/Warlord | Found Vortex Driver 5803 | -5/Warlord | Warlord's base attacked by MAIN.C 5867 | -5/Warlord | Learned Research emergency access door positions 5867 | -5/Warlord | Learned 4 Quarantine zone layouts 5867 | -5/Warlord | Learned Factory fabricator intel 5895 | -5/Warlord | Rebuked by Warlord 5929 | -5/Warlord | Opened side exit 5937 | -5/Warlord | Entered Proximity Caves 5950 | -4/Proximity Caves | Spotter reported a threat 5960 | -4/Proximity Caves | Learned location of 1 exit from Research 6116 | -4/Proximity Caves | Entered Factory 6116 | -4/Factory | Evolved 2 slots: Propulsion x1, Utility x1 6117 | -4/Factory | Identified exit to Research 6117 | -4/Factory | Identified exit to Extension 6119 | -4/Factory | Loaded intel: 6 fabricator locations 6184 | -4/Factory | Discovered exit to Research (range 20) 6272 | -4/Factory | Discovered exit to Research (range 15) 6309 | -4/Factory | Discovered new exit (range 20) 6345 | -4/Factory | Entered Extension 6503 | -4/Extension | Destroyed 7 combat bots 6594 | -4/Extension | Rescued a captive Derelict 6672 | -4/Extension | Lost 6 allies 6686 | -4/Extension | Rescued A7 6882 | -4/Extension | Rescued a captive Derelict 6980 | -4/Extension | Build established: Commander-Skirmisher 7228 | -4/Extension | Spotted B-86 Titan 7241 | -4/Extension | Discovered exit to Research (range 19) 7243 | -4/Extension | Spotted B-86 Titan 7256 | -4/Extension | Allies destroyed B-86 Titan 7264 | -4/Extension | Allies destroyed B-86 Titan 7345 | -4/Extension | First assault squad dispatched 7490 | -4/Extension | High security lockdown imminent 7506 | -4/Extension | Lost 9 allies 7570 | -4/Extension | High security lockdown engaged 7643 | -4/Extension | Core integrity fell below 50% 7653 | -4/Extension | Destroyed 14 combat bots 7718 | -4/Extension | Core integrity fell below 20% 7718 | -4/Extension | Released all parts (4) 7725 | -4/Extension | Lost 15 parts (2p7n4u2w) 7838 | -4/Extension | Discovered exit to Research (range 10) 7840 | -4/Extension | Discovered new exit (range 6) 7842 | -4/Extension | Destroyed by G-67 Veteran with Plasma Rifle Last Messages --------------- 07840_ C-30 ARC bursts open, deploying its payload. 07840_ P-70 Sage unfolds itself. 07840_ H-77 Assassin unfolds itself. 07840_ E-15 Imp unfolds itself. 07840_ C-30 ARC bursts open, deploying its payload. 07840_ H-77 Assassin unfolds itself. 07840_ P-70 Sage unfolds itself. 07840_ I-47 Archangel unfolds itself. 07840_ C-30 ARC bursts open, deploying its payload. 07840_ G-73 Enforcer unfolds itself. 07840_ G-67 Veteran unfolds itself. 07840_ M-36 Artificer unfolds itself. 07840_ Slug penetrates Machine. 07841_ C-30 ARC bursts open, deploying its payload. 07841_ H-77 Assassin unfolds itself. 07841_ Machine disabled. Map ----- +----------------------------------------------------+ | ############ % "% [# ##? | | ####### #####% "% =%[ #? | | ##!!!=# !=]=[ %[! # #% # #? | | ## =%=# =/#=#% ####% ##? | | + / = ===[*[% # #% ### | | ## # =#!% # ## # #####? | | ## # ## # # ##### #####? | | ####### ## ############# #####? | | ######################### #?###? | | ######################### #####? | | ######################### ##?##? | | ######################### ####?? | | ######################### ####?? | | ######################### ###??? | | ######################### ###??? | | ######################### ##???? | | ######################### ##???? | | ######################### #????? | | ####################?#### #????? | | ######################### #????? | | ######################### #????? | | ######################??# #????? | | ######################### ####?? | | ##################??# " e""p#?? | | ??##?#?????#?????#### "p"hl#?? | | ?????????? i@gghhY# | | ?????????? ! gYYh!# | | ?????????? i ebphY# | | ??????????? = [gpY### | | ??????????? m ghY?? | | ????????????######### / ! hYY ? | | ????????????????????# ! # | | ????????????????????###" ! "#### | | ??????????????????????#" "#??? | | ??????????????????????#"""""#??? | | ???????????????????????#####???? | | ???????????????????????????????? | | ???????????????????????????????? | | | | | | | | | | | | | | | | | | | | | | | | | +----------------------------------------------------+ Best States ------------- Heat Dissipation 62 Energy Generation 45 Energy Capacity 715 Matter Stores 300 Matter Capacity 300 Sight Range 22 Robot Scan Range 20 Terrain Scan Range 20 Terrain Scan Density 1210 Armor Coverage 225 Evasion (%) 64 Targeting Accuracy 5 Recoil Reduction 2 Offensive Hacking 33 Defensive Hacking 10 Item Schematics ----------------- Adv. Heavy Treads | -4/Extension | Hacked Gamma Bomb Array | -4/Extension | Hacked Hvy. Gauss Cannon | -4/Extension | Hacked Robot Schematics ------------------ None Fabricated ------------ Nothing Repaired ---------- Nothing Alien Tech Used ----------------- None Achievements -------------- None Challenges ------------ None Game ------ Seed CompositeSapperPrototype Manual? 0 Play Time 03:17:43 Cumulative 9.1 hours Start 2025.08.02 @ 03:20:01 End 2025.08.03 @ 00:51:33 Sessions 2 Manual Loads 0 Difficulty Rogue Special Mode None Game No. 3 Rogue 3 Adventurer 0 Explorer 0 Win Type - Total 0 Types 0/0/0/0/0/0/0/0/0/0 Lore% 17 Gallery% 11 Achievement% 72 Wizard Run 0 Options --------- Layout 2 ASCII 0 Keyboard 1 Movement Vi Keybinds 0 Fullscreen 1 Font 28/SwanstonBold Map View 50x52 Zoom Use 0% Tactical HUD 1 Map Filters NONE Filters NONE Steam 1 RUN: 729e53d7-97d2-419b-be36-fc76def28953